[Event "Betsys MČR v online bleskovém šachu 2021"]
[Site "Chess.com"]
[Date "2021.04.17"]
[Round "6"]
[White "jonvon640"]
[Black "JindrichT_CZE"]
[Result "1-0"]
[WhiteElo "1675"]
[BlackElo "2053"]
[TimeControl "180+1"]
[EndTime "9:58:00 PDT"]
[Termination "Uživatel jonvon640 zvítězil po vzdání soupeře"]

1. e4 {[%clk 0:03:00.9]} 1... e5 {[%clk 0:02:59.7]} 2. Nf3 {[%clk 0:02:59.8]}
2... Nc6 {[%clk 0:02:58.2]} 3. Bc4 {[%clk 0:02:54]} 3... Bc5 {[%clk 0:02:57.6]}
4. O-O {[%clk 0:02:49.6]} 4... Nf6 {[%clk 0:02:22.7]} 5. Nc3 {[%clk 0:02:44.5]}
5... d6 {[%clk 0:02:21.9]} 6. h3 {[%clk 0:02:37.1]} 6... O-O {[%clk 0:02:21.1]}
7. d3 {[%clk 0:02:36]} 7... h6 {[%clk 0:02:20.8]} 8. Be3 {[%clk 0:02:30.9]} 8...
Bb6 {[%clk 0:02:20.3]} 9. Nd2 {[%clk 0:02:21.8]} 9... Bxe3 {[%clk 0:02:16.8]}
10. fxe3 {[%clk 0:02:20.3]} 10... Na5 {[%clk 0:02:17.1]} 11. Bb3 {[%clk
0:02:14.3]} 11... Nxb3 {[%clk 0:02:16.9]} 12. Nxb3 {[%clk 0:02:14.5]} 12... c6
{[%clk 0:02:16.9]} 13. Rf3 {[%clk 0:02:06.5]} 13... d5 {[%clk 0:02:15.3]} 14.
exd5 {[%clk 0:02:02.5]} 14... Nxd5 {[%clk 0:02:15.1]} 15. Nxd5 {[%clk
0:02:00.1]} 15... cxd5 {[%clk 0:02:14.4]} 16. Qf1 {[%clk 0:01:55.5]} 16... Be6
{[%clk 0:02:12.6]} 17. d4 {[%clk 0:01:49]} 17... e4 {[%clk 0:02:07]} 18. Rf4
{[%clk 0:01:43.5]} 18... b6 {[%clk 0:02:07.1]} 19. c3 {[%clk 0:01:34.2]} 19...
Qd6 {[%clk 0:02:06.6]} 20. Rf2 {[%clk 0:01:22.8]} 20... f5 {[%clk 0:02:05.4]}
21. Qe2 {[%clk 0:01:15.8]} 21... Rf6 {[%clk 0:02:04.3]} 22. Raf1 {[%clk
0:01:12.3]} 22... Raf8 {[%clk 0:02:03.8]} 23. Nd2 {[%clk 0:00:53.2]} 23... f4
{[%clk 0:02:00.2]} 24. exf4 {[%clk 0:00:50.3]} 24... Rxf4 {[%clk 0:02:00]} 25.
Rxf4 {[%clk 0:00:48]} 25... Rxf4 {[%clk 0:01:59.3]} 26. Rxf4 {[%clk 0:00:46.1]}
26... Qxf4 {[%clk 0:01:59]} 27. Qf2 {[%clk 0:00:45.2]} 27... Qg5 {[%clk
0:01:52.9]} 28. h4 {[%clk 0:00:40.7]} 28... Qg4 {[%clk 0:01:47.6]} 29. g3 {[%clk
0:00:33.2]} 29... Bf5 {[%clk 0:01:38.9]} 30. Nf1 {[%clk 0:00:25.2]} 30... Qf3
{[%clk 0:01:24.1]} 31. Qxf3 {[%clk 0:00:20.4]} 31... exf3 {[%clk 0:01:23.7]} 32.
Kf2 {[%clk 0:00:20.2]} 32... Be4 {[%clk 0:01:20.2]} 33. Nd2 {[%clk 0:00:19.5]}
33... Kf7 {[%clk 0:01:18.7]} 34. Nxf3 {[%clk 0:00:19.1]} 34... Ke6 {[%clk
0:01:18.6]} 35. g4 {[%clk 0:00:16.9]} 35... a5 {[%clk 0:01:17]} 36. Ne5 {[%clk
0:00:15.9]} 36... g5 {[%clk 0:01:14.9]} 37. hxg5 {[%clk 0:00:13.8]} 37... hxg5
{[%clk 0:01:14.7]} 38. a3 {[%clk 0:00:13.1]} 38... Bc2 {[%clk 0:01:14.1]} 39. b4
{[%clk 0:00:12.2]} 39... axb4 {[%clk 0:01:13.4]} 40. cxb4 {[%clk 0:00:12.7]}
40... Bb1 {[%clk 0:01:12.1]} 41. Ke3 {[%clk 0:00:11.6]} 41... Be4 {[%clk
0:01:11]} 42. Kd2 {[%clk 0:00:10.7]} 42... Bg2 {[%clk 0:01:06.2]} 43. a4 {[%clk
0:00:08.7]} 43... Bf1 {[%clk 0:01:06]} 44. a5 {[%clk 0:00:07.6]} 44... bxa5
{[%clk 0:01:05.8]} 45. bxa5 {[%clk 0:00:08.1]} 45... Kd6 {[%clk 0:01:05.9]} 46.
Nf7+ {[%clk 0:00:05.8]} 46... Kc7 {[%clk 0:01:05.5]} 47. Nxg5 {[%clk 0:00:06.1]}
47... Kb7 {[%clk 0:01:05.7]} 48. Ne6 {[%clk 0:00:05.8]} 48... Ka6 {[%clk
0:01:05.9]} 49. Nc7+ {[%clk 0:00:05.1]} 49... Kxa5 {[%clk 0:01:06.8]} 50. Nxd5
{[%clk 0:00:05]} 50... Kb5 {[%clk 0:01:06.6]} 51. g5 {[%clk 0:00:05.2]} 51...
Kc6 {[%clk 0:01:04]} 52. g6 {[%clk 0:00:04.3]} 52... Bc4 {[%clk 0:01:00.7]} 53.
Nf6 {[%clk 0:00:02.2]} 53... Be6 {[%clk 0:00:56.2]} 54. g7 {[%clk 0:00:02]}
54... Bf7 {[%clk 0:00:55.9]} 55. g8=Q {[%clk 0:00:01.8]} 55... Bxg8 {[%clk
0:00:56.7]} 56. Nxg8 {[%clk 0:00:02.4]} 56... Kd5 {[%clk 0:00:57.6]} 57. Kd3
{[%clk 0:00:01.6]} 57... Kd6 {[%clk 0:00:58]} 58. Ke3 {[%clk 0:00:02.4]} 58...
Kc6 {[%clk 0:00:57.7]} 59. Kd3 {[%clk 0:00:03.3]} 59... Kb5 {[%clk 0:00:58.6]}
60. Nf6 {[%clk 0:00:02.9]} 60... Ka4 {[%clk 0:00:59.5]} 61. Ke4 {[%clk
0:00:03.1]} 61... Ka3 {[%clk 0:01:00.4]} 62. d5 {[%clk 0:00:03.6]} 62... Ka2
{[%clk 0:01:01.3]} 63. d6 {[%clk 0:00:04.3]} 63... Ka1 {[%clk 0:01:02.2]} 64. d7
{[%clk 0:00:05.2]} 64... Kb1 {[%clk 0:01:03.1]} 65. d8=Q {[%clk 0:00:05.6]}
65... Ka1 {[%clk 0:01:04]} 1-0

[Event "Betsys MČR v online bleskovém šachu 2021"]
[Site "Chess.com"]
[Date "2021.04.17"]
[Round "6"]
[White "JohnnyDuck64"]
[Black "sachmaty8"]
[Result "1-0"]
[WhiteElo "2115"]
[BlackElo "1820"]
[TimeControl "180+1"]
[EndTime "9:58:01 PDT"]
[Termination "Uživatel JohnnyDuck64 zvítězil matem"]

1. e4 {[%clk 0:03:00.9]} 1... e6 {[%clk 0:02:59.4]} 2. d4 {[%clk 0:02:59.8]}
2... d5 {[%clk 0:02:59.3]} 3. Nc3 {[%clk 0:03:00.2]} 3... Bb4 {[%clk 0:02:58.5]}
4. e5 {[%clk 0:02:58.6]} 4... c5 {[%clk 0:02:58.4]} 5. a3 {[%clk 0:02:58.7]}
5... Bxc3+ {[%clk 0:02:58.9]} 6. bxc3 {[%clk 0:02:58.8]} 6... Ne7 {[%clk
0:02:59.1]} 7. Qg4 {[%clk 0:02:57.6]} 7... Kf8 {[%clk 0:02:59]} 8. Nf3 {[%clk
0:02:50.9]} 8... Nbc6 {[%clk 0:02:55.3]} 9. Bd3 {[%clk 0:02:47.7]} 9... Qa5
{[%clk 0:02:53.8]} 10. Bd2 {[%clk 0:02:46.3]} 10... Qa4 {[%clk 0:02:53.6]} 11.
Ra2 {[%clk 0:02:22.1]} 11... h6 {[%clk 0:02:43.6]} 12. O-O {[%clk 0:02:18.2]}
12... Bd7 {[%clk 0:02:25.6]} 13. Rb1 {[%clk 0:02:16.1]} 13... Rb8 {[%clk
0:02:23.3]} 14. Bb5 {[%clk 0:02:11.3]} 14... Qa5 {[%clk 0:02:23]} 15. dxc5
{[%clk 0:01:53.1]} 15... a6 {[%clk 0:02:15.7]} 16. Bxc6 {[%clk 0:01:36.8]} 16...
Nxc6 {[%clk 0:02:10.2]} 17. Rab2 {[%clk 0:01:11.2]} 17... Bc8 {[%clk 0:02:02.8]}
18. c4 {[%clk 0:00:52]} 18... Qxc5 {[%clk 0:01:54]} 19. cxd5 {[%clk 0:00:47.4]}
19... Qxd5 {[%clk 0:01:50.2]} 20. Qf4 {[%clk 0:00:40.7]} 20... Kg8 {[%clk
0:01:22.7]} 21. h3 {[%clk 0:00:31.2]} 21... Kh7 {[%clk 0:01:21.6]} 22. Qh4
{[%clk 0:00:20.1]} 22... Nxe5 {[%clk 0:00:54.3]} 23. Nxe5 {[%clk 0:00:19.4]}
23... Qxe5 {[%clk 0:00:50]} 24. Bf4 {[%clk 0:00:18.2]} 24... g5 {[%clk
0:00:38.4]} 25. Bxe5 {[%clk 0:00:17.3]} 25... gxh4 {[%clk 0:00:38.5]} 26. Bxb8
{[%clk 0:00:17.1]} 26... b5 {[%clk 0:00:38.2]} 27. Bf4 {[%clk 0:00:16.2]} 27...
Rg8 {[%clk 0:00:37.9]} 28. f3 {[%clk 0:00:15.8]} 28... Bb7 {[%clk 0:00:37.4]}
29. Kf2 {[%clk 0:00:16]} 29... Rc8 {[%clk 0:00:36.8]} 30. Be3 {[%clk 0:00:16]}
30... Bd5 {[%clk 0:00:36.9]} 31. Rd1 {[%clk 0:00:15.8]} 31... Rc3 {[%clk
0:00:36.1]} 32. Rd3 {[%clk 0:00:15.3]} 32... Rc6 {[%clk 0:00:34.4]} 33. Rd4
{[%clk 0:00:15.6]} 33... Rc3 {[%clk 0:00:31.2]} 34. Rxh4 {[%clk 0:00:14.9]}
34... Rxa3 {[%clk 0:00:29]} 35. Bxh6 {[%clk 0:00:14.5]} 35... Kg6 {[%clk
0:00:27.4]} 36. Be3 {[%clk 0:00:13.9]} 36... Rc3 {[%clk 0:00:20.1]} 37. Rg4+
{[%clk 0:00:12.9]} 37... Kh7 {[%clk 0:00:19.3]} 38. Bd4 {[%clk 0:00:12.7]} 38...
Rc4 {[%clk 0:00:17.6]} 39. c3 {[%clk 0:00:12.9]} 39... Rc8 {[%clk 0:00:16.3]}
40. Rg7+ {[%clk 0:00:12.7]} 40... Kh6 {[%clk 0:00:16.3]} 41. Rxf7 {[%clk
0:00:12.8]} 41... Bc4 {[%clk 0:00:15.2]} 42. Rf6+ {[%clk 0:00:09.3]} 42... Kg5
{[%clk 0:00:14.7]} 43. g4 {[%clk 0:00:10]} 43... Rh8 {[%clk 0:00:05.6]} 44. f4+
{[%clk 0:00:10.9]} 44... Kh4 {[%clk 0:00:05.4]} 45. Kg2 {[%clk 0:00:10.7]} 45...
Rh7 {[%clk 0:00:05.2]} 46. Bf2# {[%clk 0:00:10.7]} 1-0

[Event "Betsys MČR v online bleskovém šachu 2021"]
[Site "Chess.com"]
[Date "2021.04.17"]
[Round "6"]
[White "pkozubik"]
[Black "Danyjel"]
[Result "1-0"]
[WhiteElo "1168"]
[BlackElo "1695"]
[TimeControl "180+1"]
[EndTime "9:58:02 PDT"]
[Termination "Uživatel pkozubik zvítězil na čas"]

1. e4 {[%clk 0:02:58.5]} 1... e5 {[%clk 0:03:00]} 2. Nf3 {[%clk 0:02:57.8]} 2...
Nc6 {[%clk 0:02:59.6]} 3. Bb5 {[%clk 0:02:57.8]} 3... a6 {[%clk 0:02:59.1]} 4.
Bxc6 {[%clk 0:02:57.9]} 4... dxc6 {[%clk 0:02:59.3]} 5. O-O {[%clk 0:02:57.7]}
5... f6 {[%clk 0:02:59.4]} 6. d4 {[%clk 0:02:52.6]} 6... exd4 {[%clk 0:02:58.9]}
7. Nxd4 {[%clk 0:02:50.8]} 7... Be7 {[%clk 0:02:54.8]} 8. Nc3 {[%clk 0:02:39.5]}
8... c5 {[%clk 0:02:41.2]} 9. Nf5 {[%clk 0:02:27.6]} 9... Bxf5 {[%clk
0:02:38.4]} 10. Qxd8+ {[%clk 0:02:25.7]} 10... Rxd8 {[%clk 0:02:37.6]} 11. exf5
{[%clk 0:02:25.9]} 11... Kf7 {[%clk 0:02:34.4]} 12. Bf4 {[%clk 0:02:25.2]} 12...
Bd6 {[%clk 0:02:32.9]} 13. Be3 {[%clk 0:02:14.5]} 13... Ne7 {[%clk 0:02:26.7]}
14. g4 {[%clk 0:02:08.2]} 14... h5 {[%clk 0:02:25.5]} 15. f3 {[%clk 0:02:06.7]}
15... hxg4 {[%clk 0:02:23.2]} 16. fxg4 {[%clk 0:02:01.6]} 16... Bxh2+ {[%clk
0:02:22.5]} 17. Kg2 {[%clk 0:02:01.3]} 17... Bd6 {[%clk 0:02:21.9]} 18. Ne4
{[%clk 0:01:40.2]} 18... Rh2+ {[%clk 0:02:13.1]} 19. Kg1 {[%clk 0:01:40.7]}
19... Rxc2 {[%clk 0:02:12.4]} 20. Nxd6+ {[%clk 0:01:38.9]} 20... Rxd6 {[%clk
0:01:59.9]} 21. Rae1 {[%clk 0:01:33.3]} 21... b6 {[%clk 0:01:52.8]} 22. Bc1
{[%clk 0:01:29.4]} 22... Nc6 {[%clk 0:01:42.9]} 23. g5 {[%clk 0:01:18.8]} 23...
fxg5 {[%clk 0:01:37.7]} 24. Bxg5 {[%clk 0:01:17.1]} 24... Rxb2 {[%clk
0:01:33.2]} 25. Bf4 {[%clk 0:01:08.5]} 25... Rd7 {[%clk 0:01:24]} 26. Bg5 {[%clk
0:01:01.9]} 26... Nd4 {[%clk 0:01:17.1]} 27. f6 {[%clk 0:00:57.6]} 27... g6
{[%clk 0:01:11.5]} 28. Re7+ {[%clk 0:00:56.9]} 28... Rxe7 {[%clk 0:00:42.1]} 29.
fxe7+ {[%clk 0:00:56.5]} 29... Nf5 {[%clk 0:00:42.2]} 30. Re1 {[%clk 0:00:49.9]}
30... Ke8 {[%clk 0:00:33.3]} 31. Bf6 {[%clk 0:00:16.2]} 31... Rxa2 {[%clk
0:00:31.7]} 32. Bg5 {[%clk 0:00:11.2]} 32... Ra3 {[%clk 0:00:27.1]} 33. Kf2
{[%clk 0:00:09.6]} 33... Ra2+ {[%clk 0:00:24.8]} 34. Kf3 {[%clk 0:00:08.1]}
34... Rh2 {[%clk 0:00:22.5]} 35. Kf4 {[%clk 0:00:07.7]} 35... Rf2+ {[%clk
0:00:21.5]} 36. Ke5 {[%clk 0:00:06.9]} 36... Rg2 {[%clk 0:00:13.3]} 37. Kf6
{[%clk 0:00:04.6]} 37... Nd6 {[%clk 0:00:07.2]} 38. Kxg6 {[%clk 0:00:03.9]}
38... Rc2 {[%clk 0:00:01.7]} 39. Kg7 {[%clk 0:00:04]} 39... a5 {[%clk
0:00:01.8]} 40. Kg8 {[%clk 0:00:03.4]} 40... Nf7 {[%clk 0:00:01.1]} 41. Rd1
{[%clk 0:00:02.9]} 1-0

[Event "Betsys MČR v online bleskovém šachu 2021"]
[Site "Chess.com"]
[Date "2021.04.17"]
[Round "6"]
[White "Fafin1"]
[Black "starypomalymuz"]
[Result "0-1"]
[WhiteElo "1154"]
[BlackElo "1758"]
[TimeControl "180+1"]
[EndTime "9:58:02 PDT"]
[Termination "Uživatel starypomalymuz zvítězil po vzdání soupeře"]

1. e4 {[%clk 0:03:00.9]} 1... e6 {[%clk 0:02:59.1]} 2. Nf3 {[%clk 0:03:00.2]}
2... a6 {[%clk 0:02:59.4]} 3. d4 {[%clk 0:02:58.6]} 3... b5 {[%clk 0:02:59.7]}
4. c3 {[%clk 0:02:56.1]} 4... Bb7 {[%clk 0:03:00.1]} 5. e5 {[%clk 0:02:48]} 5...
Ne7 {[%clk 0:02:59.9]} 6. Bg5 {[%clk 0:02:44.2]} 6... h6 {[%clk 0:02:58.7]} 7.
Bh4 {[%clk 0:02:41.1]} 7... c5 {[%clk 0:02:55.2]} 8. Be2 {[%clk 0:02:33.1]} 8...
cxd4 {[%clk 0:02:53.4]} 9. cxd4 {[%clk 0:02:31.6]} 9... Nbc6 {[%clk 0:02:53.8]}
10. O-O {[%clk 0:02:29]} 10... Qb6 {[%clk 0:02:50.9]} 11. Nc3 {[%clk 0:02:26.8]}
11... Nf5 {[%clk 0:02:47.8]} 12. Qd3 {[%clk 0:02:19]} 12... Ncxd4 {[%clk
0:02:35.4]} 13. Nxd4 {[%clk 0:02:17.9]} 13... Qxd4 {[%clk 0:02:33.2]} 14. Qxd4
{[%clk 0:02:16.8]} 14... Nxd4 {[%clk 0:02:32.4]} 15. Bd3 {[%clk 0:02:07.5]}
15... d5 {[%clk 0:02:23.3]} 16. exd6 {[%clk 0:02:03.6]} 16... Bxd6 {[%clk
0:02:22.9]} 17. Be4 {[%clk 0:01:58.8]} 17... Bxe4 {[%clk 0:01:57.1]} 18. Nxe4
{[%clk 0:01:58.3]} 18... Be7 {[%clk 0:01:57.6]} 19. Rfd1 {[%clk 0:01:51.6]}
19... e5 {[%clk 0:01:37.4]} 20. Bxe7 {[%clk 0:01:49.4]} 20... Kxe7 {[%clk
0:01:37.2]} 21. f3 {[%clk 0:01:48.8]} 21... Rhd8 {[%clk 0:01:30.8]} 22. b3
{[%clk 0:01:46.4]} 22... f5 {[%clk 0:01:25.9]} 23. Nc5 {[%clk 0:01:44.4]} 23...
a5 {[%clk 0:01:08]} 24. h3 {[%clk 0:01:35.2]} 24... Rac8 {[%clk 0:01:07.3]} 25.
Nb7 {[%clk 0:01:30.9]} 25... Ne2+ {[%clk 0:00:52.8]} 26. Kf2 {[%clk 0:01:24.5]}
26... Rxd1 {[%clk 0:00:53]} 27. Rxd1 {[%clk 0:01:22.3]} 27... Nc3 {[%clk
0:00:50.2]} 28. Rd2 {[%clk 0:01:15.5]} 28... a4 {[%clk 0:00:47.5]} 29. bxa4
{[%clk 0:01:09.5]} 29... Nxa4 {[%clk 0:00:45.7]} 30. Na5 {[%clk 0:01:08.6]}
30... Ke6 {[%clk 0:00:36.9]} 31. Nb3 {[%clk 0:01:07.6]} 31... Nc5 {[%clk
0:00:33.7]} 32. Nxc5+ {[%clk 0:01:02.5]} 32... Rxc5 {[%clk 0:00:33.6]} 33. Rb2
{[%clk 0:01:00.5]} 33... g5 {[%clk 0:00:33.4]} 34. a3 {[%clk 0:00:58.2]} 34...
Kd6 {[%clk 0:00:33.1]} 35. Rd2+ {[%clk 0:00:56.3]} 35... Kc6 {[%clk 0:00:32.9]}
36. Rd8 {[%clk 0:00:54.3]} 36... f4 {[%clk 0:00:31.3]} 37. Rc8+ {[%clk
0:00:50.2]} 37... Kd5 {[%clk 0:00:27.3]} 38. Rxc5+ {[%clk 0:00:46.4]} 38... Kxc5
{[%clk 0:00:27.3]} 39. Ke2 {[%clk 0:00:46.3]} 39... Kd4 {[%clk 0:00:27.3]} 40.
Kd2 {[%clk 0:00:46.1]} 40... h5 {[%clk 0:00:27.4]} 41. Kd1 {[%clk 0:00:40.2]}
41... Ke3 {[%clk 0:00:25.7]} 42. Ke1 {[%clk 0:00:38.7]} 42... h4 {[%clk
0:00:25.4]} 43. Kf1 {[%clk 0:00:37.4]} 43... e4 {[%clk 0:00:24.6]} 44. fxe4
{[%clk 0:00:35.5]} 44... Kxe4 {[%clk 0:00:24.9]} 45. Ke2 {[%clk 0:00:35.3]}
45... Ke5 {[%clk 0:00:18.2]} 46. Kd3 {[%clk 0:00:33.6]} 46... Kf5 {[%clk
0:00:16.6]} 47. Kd4 {[%clk 0:00:32.7]} 47... g4 {[%clk 0:00:16.7]} 48. hxg4+
{[%clk 0:00:30.9]} 48... Kxg4 {[%clk 0:00:16.8]} 49. Kc5 {[%clk 0:00:29.4]}
49... f3 {[%clk 0:00:16.8]} 50. gxf3+ {[%clk 0:00:27]} 50... Kxf3 {[%clk
0:00:17.3]} 51. Kxb5 {[%clk 0:00:26.8]} 51... h3 {[%clk 0:00:17.9]} 52. a4
{[%clk 0:00:26.5]} 52... h2 {[%clk 0:00:18.4]} 53. a5 {[%clk 0:00:26.4]} 53...
h1=Q {[%clk 0:00:18.1]} 54. a6 {[%clk 0:00:25.9]} 54... Qb1+ {[%clk 0:00:18.5]}
55. Kc6 {[%clk 0:00:23.8]} 55... Qb8 {[%clk 0:00:18.8]} 0-1

[Event "Betsys MČR v online bleskovém šachu 2021"]
[Site "Chess.com"]
[Date "2021.04.17"]
[Round "6"]
[White "Filipdol"]
[Black "TerezaRodshtein"]
[Result "1-0"]
[WhiteElo "1894"]
[BlackElo "2165"]
[TimeControl "180+1"]
[EndTime "9:58:03 PDT"]
[Termination "Uživatel Filipdol zvítězil po vzdání soupeře"]

1. e4 {[%clk 0:03:00.9]} 1... c5 {[%clk 0:02:58.5]} 2. Nc3 {[%clk 0:02:59.7]}
2... d6 {[%clk 0:02:52]} 3. f4 {[%clk 0:02:58.8]} 3... Nc6 {[%clk 0:02:51.7]} 4.
Nf3 {[%clk 0:02:58.3]} 4... g6 {[%clk 0:02:51.9]} 5. d3 {[%clk 0:02:57]} 5...
Bg7 {[%clk 0:02:52.2]} 6. g3 {[%clk 0:02:57.3]} 6... e6 {[%clk 0:02:49.4]} 7.
Bg2 {[%clk 0:02:57.4]} 7... Nge7 {[%clk 0:02:49.6]} 8. O-O {[%clk 0:02:57.2]}
8... O-O {[%clk 0:02:49.7]} 9. h3 {[%clk 0:02:56.5]} 9... d5 {[%clk 0:02:48.3]}
10. Qe1 {[%clk 0:02:54]} 10... a6 {[%clk 0:02:43.2]} 11. Ne2 {[%clk 0:02:51.9]}
11... b5 {[%clk 0:02:37.6]} 12. c3 {[%clk 0:02:51.5]} 12... b4 {[%clk
0:02:37.6]} 13. e5 {[%clk 0:02:49.3]} 13... f6 {[%clk 0:02:28.9]} 14. d4 {[%clk
0:02:46.2]} 14... fxe5 {[%clk 0:02:28.2]} 15. Nxe5 {[%clk 0:02:42]} 15... Nxe5
{[%clk 0:02:26.4]} 16. dxe5 {[%clk 0:02:39.3]} 16... Rb8 {[%clk 0:02:24]} 17.
Be3 {[%clk 0:02:34.6]} 17... Qc7 {[%clk 0:02:17.8]} 18. Qf2 {[%clk 0:02:31.9]}
18... c4 {[%clk 0:02:06.7]} 19. Bd4 {[%clk 0:02:26.2]} 19... Nc6 {[%clk
0:02:05.4]} 20. Qe3 {[%clk 0:02:24.1]} 20... Rf7 {[%clk 0:01:54.5]} 21. Rf2
{[%clk 0:02:20.6]} 21... Bf8 {[%clk 0:01:53.9]} 22. g4 {[%clk 0:02:13.4]} 22...
Bd7 {[%clk 0:01:45.6]} 23. f5 {[%clk 0:02:06]} 23... gxf5 {[%clk 0:01:28.7]} 24.
gxf5 {[%clk 0:02:05.1]} 24... Re8 {[%clk 0:01:28]} 25. f6 {[%clk 0:01:33.9]}
25... Nxd4 {[%clk 0:01:22.3]} 26. Nxd4 {[%clk 0:01:33.1]} 26... Bc5 {[%clk
0:01:18.2]} 27. Kh1 {[%clk 0:01:31.9]} 27... Kh8 {[%clk 0:01:17.6]} 28. Rg1
{[%clk 0:01:31.3]} 28... Rg8 {[%clk 0:01:16.8]} 29. Bf3 {[%clk 0:01:26.3]} 29...
bxc3 {[%clk 0:01:11.1]} 30. Rxg8+ {[%clk 0:01:23]} 30... Kxg8 {[%clk 0:01:09.5]}
31. bxc3 {[%clk 0:01:19.7]} 31... Bxd4 {[%clk 0:01:02.2]} 32. Qxd4 {[%clk
0:01:15.9]} 32... Kh8 {[%clk 0:00:57.5]} 33. Bh5 {[%clk 0:01:12]} 33... Rf8
{[%clk 0:00:57]} 34. Rg2 {[%clk 0:01:08.7]} 34... Be8 {[%clk 0:00:53]} 35. Bxe8
{[%clk 0:00:49.2]} 35... Rxe8 {[%clk 0:00:52.6]} 36. Rg7 {[%clk 0:00:49.1]}
36... Qb8 {[%clk 0:00:50]} 37. Qg1 {[%clk 0:00:31.3]} 37... Rg8 {[%clk
0:00:33.7]} 38. h4 {[%clk 0:00:21.9]} 38... d4 {[%clk 0:00:29.7]} 39. cxd4
{[%clk 0:00:17.1]} 39... Qa8+ {[%clk 0:00:28.9]} 40. Kh2 {[%clk 0:00:16.1]}
40... Qb8 {[%clk 0:00:20.1]} 41. h5 {[%clk 0:00:15.6]} 41... c3 {[%clk
0:00:18.9]} 42. h6 {[%clk 0:00:14.3]} 42... c2 {[%clk 0:00:16.6]} 43. f7 {[%clk
0:00:07.7]} 43... c1=Q {[%clk 0:00:06.5]} 44. Rxg8+ {[%clk 0:00:06.9]} 1-0

[Event "Betsys MČR v online bleskovém šachu 2021"]
[Site "Chess.com"]
[Date "2021.04.17"]
[Round "6"]
[White "Anyna"]
[Black "DenisaD2008"]
[Result "0-1"]
[WhiteElo "696"]
[BlackElo "967"]
[TimeControl "180+1"]
[EndTime "9:58:06 PDT"]
[Termination "Uživatel DenisaD2008 zvítězil na čas"]

1. d4 {[%clk 0:03:00.9]} 1... d5 {[%clk 0:02:57]} 2. Nf3 {[%clk 0:02:59]} 2...
Bf5 {[%clk 0:02:56.9]} 3. e3 {[%clk 0:02:57.3]} 3... Nf6 {[%clk 0:02:57]} 4. Bd3
{[%clk 0:02:56.8]} 4... Bxd3 {[%clk 0:02:55.6]} 5. Qxd3 {[%clk 0:02:57.1]} 5...
e6 {[%clk 0:02:55.9]} 6. O-O {[%clk 0:02:57]} 6... Bd6 {[%clk 0:02:55.1]} 7. Re1
{[%clk 0:02:55.8]} 7... O-O {[%clk 0:02:54.1]} 8. Nc3 {[%clk 0:02:53.7]} 8...
Nbd7 {[%clk 0:02:52.7]} 9. e4 {[%clk 0:02:43.8]} 9... dxe4 {[%clk 0:02:51.3]}
10. Nxe4 {[%clk 0:02:42.4]} 10... Nxe4 {[%clk 0:02:42.3]} 11. Qxe4 {[%clk
0:02:36.9]} 11... Rb8 {[%clk 0:02:39.5]} 12. Bg5 {[%clk 0:02:25.3]} 12... Qe8
{[%clk 0:02:26.6]} 13. Qg4 {[%clk 0:02:15.6]} 13... f5 {[%clk 0:02:23.7]} 14.
Qh3 {[%clk 0:01:41.8]} 14... e5 {[%clk 0:02:09.8]} 15. dxe5 {[%clk 0:01:38.2]}
15... Nxe5 {[%clk 0:02:08.4]} 16. Nxe5 {[%clk 0:01:37]} 16... Bxe5 {[%clk
0:02:07]} 17. Bf4 {[%clk 0:01:29.4]} 17... Rf6 {[%clk 0:01:36]} 18. Bxe5 {[%clk
0:01:19.2]} 18... Rh6 {[%clk 0:01:35.3]} 19. Qg3 {[%clk 0:01:12.6]} 19... Rg6
{[%clk 0:01:33]} 20. Qb3+ {[%clk 0:01:05.4]} 20... Kh8 {[%clk 0:01:28.3]} 21.
Bxg7+ {[%clk 0:01:00.2]} 21... Rxg7 {[%clk 0:01:25.7]} 22. Rxe8+ {[%clk
0:00:51.4]} 22... Rxe8 {[%clk 0:01:25.9]} 23. Qxb7 {[%clk 0:00:46.5]} 23... Reg8
{[%clk 0:01:25.1]} 24. Qf3 {[%clk 0:00:40.2]} 24... c5 {[%clk 0:01:18.2]} 25.
Re1 {[%clk 0:00:31.6]} 25... h6 {[%clk 0:01:15]} 26. Qh3 {[%clk 0:00:28.7]}
26... Kh7 {[%clk 0:01:11.4]} 27. Qxf5+ {[%clk 0:00:23.6]} 27... Kh8 {[%clk
0:01:09.8]} 28. Qh3 {[%clk 0:00:22]} 28... Kh7 {[%clk 0:01:07.5]} 29. Re6 {[%clk
0:00:21.5]} 29... Rg6 {[%clk 0:01:01.5]} 30. Rxg6 {[%clk 0:00:19.9]} 30... Rxg6
{[%clk 0:01:01.8]} 31. Qd7+ {[%clk 0:00:19.3]} 31... Rg7 {[%clk 0:01:00.7]} 32.
Qd3+ {[%clk 0:00:17.3]} 32... Kh8 {[%clk 0:00:56.8]} 33. Qd8+ {[%clk 0:00:15.5]}
33... Rg8 {[%clk 0:00:55.4]} 34. Qf6+ {[%clk 0:00:15]} 34... Kh7 {[%clk
0:00:53.6]} 35. f4 {[%clk 0:00:13.4]} 35... Rg6 {[%clk 0:00:52.2]} 36. Qf7+
{[%clk 0:00:11.8]} 36... Rg7 {[%clk 0:00:51.5]} 37. Qd5 {[%clk 0:00:10.8]} 37...
c4 {[%clk 0:00:48.7]} 38. Qxc4 {[%clk 0:00:10.5]} 38... a5 {[%clk 0:00:48.3]}
39. f5 {[%clk 0:00:08.8]} 39... Kh8 {[%clk 0:00:43.4]} 40. Qc8+ {[%clk 0:00:08]}
40... Rg8 {[%clk 0:00:42.7]} 41. Qe6 {[%clk 0:00:05.8]} 41... Rf8 {[%clk
0:00:41.4]} 42. f6 {[%clk 0:00:05.9]} 42... Kh7 {[%clk 0:00:38.8]} 43. f7 {[%clk
0:00:06.2]} 43... h5 {[%clk 0:00:37.5]} 44. Qf6 {[%clk 0:00:04.8]} 44... a4
{[%clk 0:00:32.6]} 45. c4 {[%clk 0:00:05.1]} 45... h4 {[%clk 0:00:28.2]} 46. c5
{[%clk 0:00:04]} 46... h3 {[%clk 0:00:26.7]} 47. c6 {[%clk 0:00:03.3]} 47...
hxg2 {[%clk 0:00:24.9]} 48. c7 {[%clk 0:00:03.3]} 48... a3 {[%clk 0:00:22.7]}
0-1